bitfinex/quotes_SOLUSD_20220207
["timestamp","ask_amount","ask_price","bid_price","bid_amount"]
[1644222579832,24.379,116.43,116.33,23.0478]
[1644222580133,24.379,116.43,116.34,7.77099386]
[1644222580134,44.56206831,116.42,116.34,7.77099386]
[1644222580333,44.56206831,116.42,116.34,9.7364574]
[1644222580533,44.56206831,116.42,116.35,1.71546354]
[1644222580734,44.56206831,116.42,116.35,1.96546354]
[1644222581134,12.89,116.44,116.36,20.8828077]
[1644222581335,1.18456643,116.45,116.36,21.1328077]
[1644222581733,6.0,116.45,116.36,21.1328077]
[1644222581933,49.33876643,116.46,116.36,21.1328077]
[1644222582134,48.39786339,116.45,116.36,21.1328077]
[1644222582734,49.58242982,116.45,116.36,21.1328077]
[1644222583034,48.64786339,116.45,116.36,21.1328077]
[1644222583634,48.64786339,116.45,116.36,0.25]
[1644222583835,48.64786339,116.45,116.35,50.11521224]
[1644222584034,48.64786339,116.45,116.35,56.11521224]
[1644222585333,48.64786339,116.45,116.36,7.46490305]
[1644222585735,54.64786339,116.45,116.36,13.71490305]
[1644222586138,54.64786339,116.45,116.37,0.3448487]
[1644222586738,54.64786339,116.45,116.37,2.0604592]
[1644222587136,54.64786339,116.45,116.37,23.32939744]
[1644222587635,54.64786339,116.45,116.37,2.3104592]
[1644222589039,54.64786339,116.45,116.37,0.5948487]
[1644222589241,54.64786339,116.45,116.37,0.3448487]
[1644222592039,54.64786339,116.45,116.36,0.3448487]
[1644222592239,95.93829095,116.45,116.36,0.3448487]
[1644222592439,6.4006109,116.44,116.36,0.3448487]
[1644222592639,18.6806109,116.44,116.36,0.3448487]
[1644222592839,35.98600489,116.44,116.36,0.3448487]
[1644222593039,45.77525852,116.43,116.36,0.3448487]
[1644222593642,8.98056184,116.42,116.36,0.3448487]
[1644222593842,37.64950883,116.41,116.36,0.3448487]
[1644222595042,37.64950883,116.41,116.33,0.3448487]
[1644222596346,37.64950883,116.41,116.32,29.02345028]
[1644222596744,37.64950883,116.41,116.32,30.73906078]
[1644222597146,37.89950883,116.41,116.32,30.73906078]
[1644222598546,43.89950883,116.41,116.32,30.73906078]
[1644222598745,37.89950883,116.41,116.32,30.73906078]
[1644222599149,43.89950883,116.41,116.32,43.01906078]
[1644222599346,37.89950883,116.41,116.32,43.01906078]
[1644222600648,37.64950883,116.41,116.32,43.01906078]
[1644222600850,37.64950883,116.41,116.32,42.76906078]
[1644222601051,37.64950883,116.41,116.32,18.28]
[1644222601448,43.64950883,116.41,116.32,12.28]
[1644222601649,37.64950883,116.41,116.32,12.28]
[1644222602052,56.54350883,116.41,116.32,12.28]
[1644222602254,74.30407526,116.41,116.28,12.28]
[1644222602455,5.48156643,116.4,116.26,1.22154313]
[1644222602652,12.28,116.39,116.25,1.32958651]
[1644222602853,4.298,116.38,116.25,0.10804338]
[1644222603054,44.85033085,116.37,116.25,24.48461103]
[1644222603657,44.85033085,116.37,116.25,30.48461103]
[1644222603856,44.85033085,116.37,116.25,94.61461103]
[1644222604081,44.85033085,116.37,116.25,95.83615416]
[1644222604258,45.10033085,116.37,116.27,3.62208261]
[1644222604458,45.10033085,116.37,116.27,15.90208261]
[1644222604658,45.10033085,116.37,116.27,22.15208261]
[1644222605260,44.85033085,116.37,116.27,22.15208261]
[1644222605960,12.8961,116.39,116.27,22.15208261]
[1644222606159,12.8961,116.39,116.28,24.4133]
[1644222606358,12.8961,116.39,116.28,36.9433]
[1644222606558,13.1461,116.39,116.28,42.9433]
[1644222606959,54.78321097,116.39,116.29,19.97840038]
[1644222607159,54.78321097,116.39,116.29,25.97840038]
[1644222607360,41.63711097,116.39,116.29,26.22840038]
[1644222608159,47.63711097,116.39,116.29,26.22840038]
[1644222608560,47.63711097,116.39,116.3,12.28]
[1644222608759,47.63711097,116.39,116.31,8.02024988]
[1644222609260,47.63711097,116.39,116.31,8.27024988]
[1644222609660,6.0,116.39,116.31,8.27024988]
[1644222610060,23.2514,116.4,116.31,8.02024988]
[1644222610760,42.19859519,116.39,116.31,8.02024988]
[1644222611163,42.19859519,116.39,116.31,14.02024988]
[1644222611363,42.19859519,116.39,116.31,14.27024988]
[1644222611584,42.19859519,116.39,116.31,26.55024988]
[1644222612262,23.2514,116.4,116.31,26.55024988]
[1644222612465,18.37266643,116.43,116.31,26.55024988]
[1644222612663,12.8911,116.43,116.32,24.6012]
[1644222613063,14.07566643,116.43,116.32,36.8812]
[1644222613264,39.73985327,116.42,116.32,36.8812]
[1644222613465,52.63275327,116.42,116.32,36.8812]
[1644222613665,58.63275327,116.42,116.33,19.97840038]
[1644222613865,58.88275327,116.42,116.32,36.8812]
[1644222614068,58.88275327,116.42,116.32,37.1312]
[1644222614465,58.88275327,116.42,116.32,43.1312]
[1644222614667,58.88275327,116.42,116.32,37.1312]
[1644222614865,58.88275327,116.42,116.33,22.48767363]
[1644222615265,1.18456643,116.43,116.33,24.45328413]
[1644222615466,1.18456643,116.43,116.33,94.33328413]
[1644222615669,1.18456643,116.45,116.33,94.33328413]
[1644222615868,1.18456643,116.46,116.34,74.6825]
[1644222616067,1.18456643,116.46,116.35,16.575]
[1644222616268,39.6557359,116.46,116.36,5.51097663]
[1644222616468,1.18456643,116.47,116.37,63.88]
[1644222616673,68.2394962,116.49,116.38,28.7244]
[1644222616674,69.42406263,116.49,116.38,28.7244]
[1644222616873,48.28626643,116.49,116.39,12.28]
[1644222617073,1.18456643,116.5,116.39,12.28]
[1644222617273,1.18456643,116.5,116.4,22.6843]
[1644222617473,1.18456643,116.5,116.41,22.48767363]
[1644222617676,1.18456643,116.5,116.41,40.76767363]
[1644222617879,1.70066397,116.51,116.41,104.99942011]
[1644222618077,1.70066397,116.51,116.42,1.71574648]
[1644222618273,0.51609754,116.51,116.43,12.28]
[1644222618473,0.51609754,116.51,116.43,36.4431]
[1644222618677,0.51609754,116.51,116.44,1.71574648]
[1644222618875,0.51609754,116.51,116.45,17.79097663]
[1644222619114,0.51609754,116.51,116.45,23.79097663]
[1644222619310,0.51609754,116.51,116.46,1.71574648]
[1644222619512,0.51609754,116.51,116.47,12.28]
[1644222619712,0.51609754,116.51,116.47,18.53]
[1644222619911,0.51609754,116.51,116.47,20.24574648]
[1644222620315,1.18456643,116.56,116.48,158.47261686]
[1644222620512,47.00116253,116.58,116.49,12.28]
[1644222620713,47.00116253,116.58,116.5,6.60993586]
[1644222621115,47.00116253,116.58,116.51,12.28]
[1644222621312,47.00116253,116.58,116.51,14.24574648]
[1644222621513,47.00116253,116.58,116.51,12.53]
[1644222621711,53.00116253,116.58,116.51,12.53]
[1644222623614,53.00116253,116.58,116.51,18.53]
[1644222623813,53.00116253,116.58,116.51,12.53]
[1644222624414,6.0,116.58,116.51,12.53]
[1644222624615,0.10403298,116.62,116.51,18.53]
[1644222624815,0.10403298,116.62,116.51,20.24574648]
[1644222625417,40.26151577,116.62,116.52,21.99392449]
[1644222625615,40.26151577,116.62,116.53,12.28]
[1644222625816,40.26151577,116.62,116.53,12.53]
[1644222626015,53.13211577,116.62,116.53,6.0]
[1644222626215,53.13211577,116.62,116.49,13.99574648]
[1644222626415,33.2870727,116.61,116.49,12.28]
[1644222626620,47.30649719,116.61,116.49,12.28]
[1644222626916,37.61368617,116.6,116.49,12.28]
[1644222628020,44.31220554,116.58,116.49,12.28]
[1644222628217,44.31220554,116.58,116.49,12.53]
[1644222628418,44.31220554,116.58,116.49,18.53]
[1644222629217,44.31220554,116.58,116.49,12.53]
[1644222630018,44.31220554,116.58,116.49,18.53]
[1644222631222,44.31220554,116.58,116.49,41.9679825]
[1644222631421,44.31220554,116.58,116.49,43.68372898]
[1644222631623,44.31220554,116.58,116.49,37.68372898]
[1644222632024,44.31220554,116.58,116.49,20.24574648]
[1644222632223,44.56220554,116.58,116.49,20.24574648]
[1644222633127,44.56220554,116.58,116.49,14.24574648]
[1644222633523,44.56220554,116.58,116.49,13.99574648]
[1644222633924,44.56220554,116.58,116.49,12.28]
[1644222634128,44.56220554,116.58,116.49,6.0]
[1644222634525,57.43730554,116.58,116.48,12.28]
[1644222634926,57.43730554,116.58,116.49,1.71574648]
[1644222635227,56.68730554,116.58,116.49,1.96574648]
[1644222635628,56.68730554,116.58,116.5,24.32004117]
[1644222635927,43.81220554,116.58,116.5,24.57004117]
[1644222636727,43.81220554,116.58,116.5,0.25]
[1644222637227,43.81220554,116.58,116.49,37.94294648]
[1644222638232,49.81220554,116.58,116.46,7.71574648]
[1644222638432,4.291,116.57,116.46,1.71574648]
[1644222638630,30.59042449,116.57,116.46,1.71574648]
[1644222638830,30.84042449,116.57,116.44,24.7233]
[1644222639033,40.22486627,116.56,116.44,26.43904648]
[1644222639630,40.22486627,116.56,116.44,26.68904648]
[1644222640032,12.8789,116.54,116.44,26.68904648]
[1644222640231,43.84173002,116.53,116.44,26.68904648]
[1644222641640,56.72233002,116.53,116.44,26.43904648]
[1644222641836,62.72233002,116.53,116.44,26.43904648]
[1644222642238,62.97233002,116.53,116.44,26.43904648]
[1644222642837,62.97233002,116.53,116.44,26.68904648]
[1644222643041,62.97233002,116.53,116.42,34.9931]
[1644222643241,62.97233002,116.53,116.43,0.25]
[1644222644242,62.97233002,116.53,116.42,35.2431]
[1644222644641,64.15689645,116.53,116.42,35.2431]
[1644222645655,53.98241653,116.51,116.42,35.2431]
[1644222647156,53.98241653,116.51,116.42,36.95459426]
[1644222647957,59.98241653,116.51,116.42,36.95459426]
[1644222648357,47.09951653,116.51,116.42,36.95459426]
[1644222648561,47.09951653,116.51,116.43,20.43776588]
[1644222648759,41.09951653,116.51,116.43,32.96776588]
[1644222648961,41.09951653,116.51,116.44,1.71149426]
[1644222649162,41.09951653,116.51,116.44,19.99149426]
[1644222649360,41.09951653,116.51,116.44,20.24149426]
[1644222649560,41.09951653,116.51,116.45,1.71149426]
[1644222649758,41.09951653,116.51,116.45,9.5062811]
[1644222649959,46.8106,116.54,116.45,9.5062811]
[1644222650160,6.0,116.54,116.45,1.96149426]
[1644222650358,6.0,116.54,116.45,12.28]
[1644222650559,6.0,116.54,116.43,12.28]
[1644222650560,7.18456643,116.54,116.43,12.28]
[1644222650759,1.18456643,116.53,116.44,0.25]
[1644222651264,37.96536068,116.53,116.45,12.28]
[1644222651460,37.96536068,116.53,116.45,36.9409]
[1644222651661,37.96536068,116.53,116.45,12.28]
[1644222651861,37.96536068,116.53,116.44,0.25]
[1644222652462,37.96536068,116.53,116.44,24.58298064]
[1644222652661,37.96536068,116.53,116.45,12.28]
[1644222652861,37.96536068,116.53,116.45,12.53]
[1644222653062,37.96536068,116.53,116.46,1.71149426]
[1644222653362,37.96536068,116.53,116.46,1.96149426]
[1644222653561,1.18456643,116.56,116.47,12.28]
[1644222653764,12.8754,116.58,116.47,62.71499426]
[1644222653765,1.18456643,116.57,116.47,62.71499426]
[1644222653962,1.18456643,116.57,116.48,1.71149426]
[1644222654262,1.18456643,116.57,116.48,0.25]
[1644222654563,38.3045867,116.56,116.48,0.25]
[1644222654762,38.5545867,116.56,116.48,0.25]
[1644222655564,38.5545867,116.56,116.47,67.0035]
[1644222655766,38.5545867,116.56,116.47,74.15445845]
[1644222655963,38.5545867,116.56,116.47,69.86595271]
[1644222656267,37.12002027,116.56,116.47,75.86595271]
[1644222656664,1.18456643,116.57,116.47,127.46595271]
[1644222656865,1.18456643,116.58,116.47,127.46595271]
[1644222657665,34.35321194,116.57,116.47,127.46595271]
[1644222658666,34.35321194,116.57,116.47,68.71499426]
[1644222658869,34.35321194,116.57,116.47,67.0035]
[1644222659068,35.53777837,116.57,116.47,61.0035]
[1644222659467,41.53777837,116.57,116.47,61.0035]
[1644222659668,35.53777837,116.57,116.47,61.0035]
[1644222659867,35.53777837,116.57,116.47,67.0035]
[1644222660069,35.53777837,116.57,116.47,61.0035]
[1644222660268,35.53777837,116.57,116.47,67.0035]
[1644222660668,41.53777837,116.57,116.47,61.0035]
[1644222660869,41.53777837,116.57,116.47,67.0035]
[1644222661071,35.53777837,116.57,116.47,67.0035]
[1644222661471,39.11414025,116.55,116.47,67.0035]
[1644222662269,39.11414025,116.55,116.47,66.7535]
[1644222662469,45.11414025,116.55,116.43,24.0558]
[1644222662669,48.40431758,116.55,116.44,23.9278]
[1644222662870,5.47656643,116.54,116.44,23.9278]
[1644222663071,43.06365347,116.53,116.44,29.9278]
[1644222663270,43.06365347,116.53,116.44,37.29099763]
[1644222663470,43.06365347,116.53,116.44,29.9278]
[1644222663872,43.06365347,116.53,116.44,30.1778]
[1644222664075,43.31365347,116.53,116.44,30.1778]
[1644222664271,43.06365347,116.53,116.44,30.1778]
[1644222664670,43.06365347,116.53,116.44,53.64634505]
[1644222664871,43.06365347,116.53,116.44,65.92634505]
[1644222665271,43.06365347,116.53,116.44,67.63783931]
[1644222665471,43.31365347,116.53,116.44,67.63783931]
[1644222666474,43.31365347,116.53,116.44,119.23783931]
[1644222667475,43.06365347,116.53,116.44,119.23783931]
[1644222668176,43.06365347,116.53,116.44,123.52983931]
[1644222669079,1.18456643,116.57,116.44,123.52983931]
[1644222669280,1.18456643,116.57,116.45,74.7567]
[1644222669478,7.18456643,116.57,116.46,63.88]
[1644222669678,6.0,116.57,116.47,75.4488]
[1644222669878,6.0,116.57,116.48,63.88]
[1644222670078,41.8222903,116.57,116.48,74.39400767]
[1644222670278,35.8222903,116.57,116.49,1.71149426]
[1644222670479,35.8222903,116.57,116.49,13.99149426]
[1644222670680,41.8222903,116.57,116.49,14.24149426]
[1644222670882,35.8222903,116.57,116.49,14.24149426]
[1644222671280,1.18456643,116.59,116.5,23.46854505]
[1644222671481,1.18456643,116.59,116.51,12.28]
[1644222671681,1.18456643,116.6,116.51,19.99149426]
[1644222671884,1.18456643,116.6,116.51,20.24149426]
[1644222672083,1.18456643,116.6,116.52,1.71149426]
[1644222672281,34.26862044,116.59,116.52,37.96439426]
[1644222672481,34.26862044,116.59,116.52,43.96439426]
[1644222672682,40.51862044,116.59,116.52,37.96439426]
[1644222672982,1.28859941,116.62,116.53,53.31149426]
[1644222673181,1.28859941,116.62,116.53,59.31149426]
[1644222673384,1.28859941,116.62,116.54,12.28]
[1644222673584,0.10403298,116.62,116.54,41.8243]
[1644222673783,0.10403298,116.62,116.54,42.0743]
[1644222674885,47.49115463,116.62,116.54,42.0743]
[1644222680512,47.49115463,116.62,116.54,64.72029752]
[1644222680711,47.49115463,116.62,116.54,75.71529752]
[1644222683515,47.49115463,116.62,116.54,127.31529752]
[1644222683716,0.10403298,116.62,116.54,127.31529752]
[1644222684217,0.10403298,116.62,116.54,280.78529752]
[1644222685017,0.10403298,116.62,116.56,51.6]
[1644222685218,0.10403298,116.62,116.58,51.6]
[1644222685419,0.10403298,116.62,116.59,12.28]
[1644222685620,0.10403298,116.62,116.59,18.28]
[1644222685820,0.10403298,116.62,116.6,6.06439994]
[1644222686021,0.10403298,116.62,116.6,18.34439994]
[1644222686225,0.10403298,116.62,116.6,24.59439994]
[1644222686422,0.10403298,116.62,116.6,76.19439994]
[1644222686923,0.10403298,116.62,116.6,24.59439994]
[1644222687130,0.10403298,116.62,116.6,18.34439994]
[1644222688323,0.10403298,116.62,116.6,6.06439994]
[1644222691529,0.10403298,116.62,116.54,24.5754]
[1644222691729,0.10403298,116.62,116.54,6.0]
[1644222691932,0.10403298,116.62,116.5,30.9588]
[1644222692131,2.1056109,116.61,116.5,6.0]
[1644222692537,2.1056109,116.61,116.48,50.75783543]
[1644222692731,0.10403298,116.62,116.5,12.28]
[1644222693133,34.85540937,116.61,116.5,12.28]
[1644222693632,34.85540937,116.61,116.5,23.65786824]
[1644222693832,34.85540937,116.61,116.5,18.53]
[1644222694033,34.85540937,116.61,116.51,23.5407]
[1644222694236,34.85540937,116.61,116.51,36.0707]
[1644222694434,34.85540937,116.61,116.51,42.0707]
[1644222695535,35.10540937,116.61,116.51,42.0707]
[1644222695935,47.97700937,116.61,116.51,36.0707]
[1644222696135,53.97700937,116.61,116.51,36.0707]
[1644222696334,53.72700937,116.61,116.51,37.77793543]
[1644222696535,53.72700937,116.61,116.51,43.77793543]
[1644222698561,47.72700937,116.61,116.51,43.77793543]
[1644222698962,47.97700937,116.61,116.51,43.77793543]
[1644222699163,47.72700937,116.61,116.51,43.77793543]
[1644222699363,47.97700937,116.61,116.51,43.77793543]
[1644222699564,53.97700937,116.61,116.51,43.77793543]
[1644222700266,41.10540937,116.61,116.51,43.77793543]
[1644222701473,40.85540937,116.61,116.51,43.77793543]
[1644222701676,40.85540937,116.61,116.52,48.49878991]
[1644222701868,34.85540937,116.61,116.53,12.28]
[1644222702069,34.85540937,116.61,116.53,19.98723543]
[1644222702070,40.85540937,116.61,116.53,19.98723543]
[1644222702369,40.85540937,116.61,116.54,35.54816275]
[1644222702572,34.85540937,116.61,116.55,12.28]
[1644222702770,34.85540937,116.61,116.55,12.53]
[1644222702971,34.85540937,116.61,116.55,18.53]
[1644222703170,34.85540937,116.61,116.55,12.53]
[1644222703470,34.85540937,116.61,116.55,12.28]
[1644222703471,40.85540937,116.61,116.55,12.28]
[1644222703670,40.85540937,116.61,116.52,24.9213]
[1644222703873,46.3289758,116.61,116.5,23.7946]
[1644222704170,22.8368,116.6,116.5,23.7946]
[1644222704671,45.56559746,116.59,116.5,23.7946]
[1644222705073,45.56559746,116.59,116.5,30.0446]
[1644222707172,51.56559746,116.59,116.5,30.0446]
[1644222707373,51.56559746,116.59,116.5,24.0446]
[1644222708573,51.56559746,116.59,116.5,30.0446]
[1644222709375,52.75016389,116.59,116.5,30.0446]
[1644222709574,51.56559746,116.59,116.5,30.0446]
[1644222709773,51.56559746,116.59,116.5,24.0446]
[1644222709974,2.1056109,116.58,116.48,23.99]
[1644222710179,50.50617733,116.58,116.48,23.99]
[1644222710375,50.50617733,116.58,116.45,40.6595]
[1644222710574,2.1056109,116.57,116.45,40.6595]
[1644222710777,38.5775495,116.55,116.45,80.75528699]
[1644222711178,38.5775495,116.55,116.45,40.6595]
[1644222711677,2.1056109,116.54,116.45,40.6595]
[1644222712076,34.92668535,116.53,116.45,40.6595]
[1644222712477,34.92668535,116.53,116.45,75.62694218]
[1644222712679,47.80738535,116.53,116.45,75.62694218]
[1644222712877,47.80738535,116.53,116.45,75.87694218]
[1644222713076,47.80738535,116.53,116.45,81.87694218]
[1644222713278,47.80738535,116.53,116.45,75.87694218]
[1644222713480,47.80738535,116.53,116.45,71.58694218]
[1644222713681,47.80738535,116.53,116.45,77.58694218]
[1644222713878,47.80738535,116.53,116.45,71.58694218]
[1644222714479,47.80738535,116.53,116.45,36.6195]
[1644222716782,47.80738535,116.53,116.46,36.419502]
[1644222717181,47.80738535,116.53,116.46,36.669502]
[1644222717982,34.92668535,116.53,116.46,36.669502]
[1644222718382,34.92668535,116.53,116.46,0.25]
[1644222718784,34.92668535,116.53,116.45,30.3395]
[1644222719584,34.92668535,116.53,116.46,38.91028413]
[1644222719784,34.92668535,116.53,116.46,39.16028413]
[1644222720186,34.92668535,116.53,116.46,6.25]
[1644222720785,34.92668535,116.53,116.46,0.25]
[1644222721187,34.92668535,116.53,116.46,38.68796785]
[1644222721385,34.92668535,116.53,116.46,44.93796785]
[1644222721684,34.92668535,116.53,116.46,38.93796785]
[1644222721886,34.92668535,116.53,116.45,30.0895]
[1644222723388,34.92668535,116.53,116.45,30.3395]
[1644222723789,34.92668535,116.53,116.45,32.04712793]
[1644222726016,34.92668535,116.53,116.45,56.89332793]
[1644222726417,34.92668535,116.53,116.46,46.42105027]
[1644222726818,34.92668535,116.53,116.46,58.95105027]
[1644222727817,34.92668535,116.53,116.46,18.28]
[1644222728020,34.92668535,116.53,116.46,12.28]
[1644222728218,35.17668535,116.53,116.46,12.28]
[1644222728418,34.92668535,116.53,116.46,12.28]
[1644222729318,34.92668535,116.53,116.46,12.53]
[1644222729518,34.92668535,116.53,116.46,18.53]
[1644222729918,34.92668535,116.53,116.46,18.28]
[1644222730122,34.92668535,116.53,116.46,12.28]
[1644222731120,40.92668535,116.53,116.46,12.28]
[1644222731720,34.92668535,116.53,116.46,12.28]
[1644222732328,34.92668535,116.53,116.46,12.53]
[1644222733124,40.92668535,116.53,116.46,12.53]
[1644222733523,34.92668535,116.53,116.46,12.53]
[1644222734123,40.92668535,116.53,116.46,12.53]
[1644222735124,41.17668535,116.53,116.46,12.53]
[1644222735327,41.17668535,116.53,116.46,0.25]
[1644222735824,41.17668535,116.53,116.45,24.3395]
[1644222736024,54.05718535,116.53,116.43,12.28]
[1644222736225,54.05718535,116.53,116.42,12.28]
[1644222736226,57.34736268,116.53,116.42,12.28]
[1644222736424,98.62990641,116.53,116.41,4.292]
[1644222736624,5.47656643,116.52,116.41,4.292]
[1644222736825,4.292,116.52,116.41,10.292]
[1644222737032,42.49513692,116.51,116.41,10.292]
[1644222737228,42.49513692,116.51,116.41,6.0]
[1644222737725,42.49513692,116.51,116.41,0.25]
[1644222737925,12.8835,116.5,116.41,0.25]
[1644222738128,12.8835,116.5,116.4,28.5912]
[1644222738326,37.76054712,116.49,116.4,22.5912]
[1644222738524,37.76054712,116.49,116.38,13.50154313]
[1644222738525,39.86615802,116.49,116.38,13.50154313]
[1644222738725,40.11615802,116.49,116.37,1.22154313]
[1644222738925,44.40915802,116.49,116.36,23.81274313]
[1644222739328,44.40915802,116.49,116.36,75.6031809]
[1644222739526,67.69625802,116.49,116.36,75.6031809]
[1644222739728,65.59064712,116.49,116.37,12.28]
[1644222739927,74.18274712,116.49,116.38,38.25651489]
[1644222740128,74.18274712,116.49,116.38,80.86824282]
[1644222740327,74.18274712,116.49,116.38,81.11824282]
[1644222740732,67.04764712,116.49,116.38,81.11824282]
[1644222741529,67.04764712,116.49,116.38,75.11824282]
[1644222741730,67.04764712,116.49,116.38,81.11824282]
[1644222742130,67.29764712,116.49,116.38,81.11824282]
[1644222742331,67.29764712,116.49,116.38,75.11824282]
[1644222742530,67.29764712,116.49,116.39,1.70762793]
[1644222742729,67.29764712,116.49,116.39,1.95762793]
[1644222742929,67.04764712,116.49,116.39,0.25]
[1644222743929,79.93274712,116.49,116.39,0.25]
[1644222744131,79.93274712,116.49,116.38,73.41061489]
[1644222744330,79.93274712,116.49,116.39,1.70762793]
[1644222744730,67.04764712,116.49,116.39,7.95762793]
[1644222744932,67.04764712,116.49,116.4,24.7878]
[1644222745131,67.29764712,116.49,116.4,24.7878]
[1644222745332,67.29764712,116.49,116.4,25.0378]
[1644222746334,67.04764712,116.49,116.4,25.0378]
[1644222747735,67.29764712,116.49,116.4,37.3178]
[1644222748135,67.29764712,116.49,116.4,39.02542793]
[1644222752139,80.18274712,116.49,116.4,39.02542793]
[1644222752339,80.18274712,116.49,116.4,26.74542793]
[1644222752740,80.18274712,116.49,116.4,66.47718452]
[1644222752941,80.18274712,116.49,116.4,26.74542793]
[1644222754545,80.18274712,116.49,116.4,1.95762793]
[1644222755048,43.76054712,116.49,116.4,89.96964793]
[1644222755250,4.293,116.52,116.4,108.24964793]
[1644222755454,1.18456643,116.55,116.41,80.6939]
[1644222755655,5.47756643,116.56,116.42,36.1233]
[1644222755855,23.0732,116.56,116.43,24.8009]
[1644222756055,23.0732,116.56,116.44,12.28]
[1644222756258,23.0732,116.56,116.46,36.41202]
[1644222756259,48.42571268,116.55,116.46,36.41202]
[1644222756455,5.47656643,116.59,116.46,36.41202]
[1644222756655,5.47656643,116.59,116.47,68.17]
[1644222756656,1.18456643,116.59,116.47,68.17]
[1644222756855,21.19969246,116.61,116.47,78.76010107]
[1644222756856,1.18456643,116.61,116.47,78.76010107]
[1644222757055,0.10403298,116.62,116.51,51.6]
[1644222757255,0.10403298,116.62,116.52,12.28]
[1644222757457,36.85970849,116.62,116.52,102.88995294]
[1644222757658,36.85970849,116.62,116.52,109.13995294]
[1644222757869,36.85970849,116.62,116.54,46.74462773]
[1644222758069,36.85970849,116.62,116.54,59.02462773]
[1644222758267,36.85970849,116.62,116.54,66.98225574]
[1644222760369,36.85970849,116.62,116.54,20.23762801]
[1644222760570,36.85970849,116.62,116.54,18.53]
[1644222760971,42.85970849,116.62,116.54,18.53]
[1644222762572,42.85970849,116.62,116.54,18.28]
[1644222763775,42.85970849,116.62,116.51,23.7018]
[1644222763776,55.73060849,116.62,116.51,23.7018]
[1644222764079,4.289,116.61,116.48,12.28]
[1644222764277,4.289,116.61,116.48,18.53]
[1644222764477,36.85970849,116.62,116.48,18.53]
[1644222764675,36.85970849,116.62,116.49,42.48348038]
[1644222764876,37.70433994,116.58,116.5,12.28]
[1644222765075,0.10403298,116.62,116.51,41.56347228]
[1644222765276,0.10403298,116.62,116.52,12.28]
[1644222765675,0.10403298,116.62,116.52,12.53]
[1644222766076,0.10403298,116.62,116.53,41.40481288]
[1644222766276,0.10403298,116.62,116.53,53.93481288]
[1644222767077,47.65032948,116.62,116.53,53.93481288]
[1644222767678,47.90032948,116.62,116.53,53.93481288]
[1644222767878,53.90032948,116.62,116.53,53.93481288]
[1644222768478,53.90032948,116.62,116.53,59.93481288]
[1644222768677,53.90032948,116.62,116.53,53.93481288]
[1644222769678,53.90032948,116.62,116.53,59.93481288]
[1644222769878,53.90032948,116.62,116.53,53.93481288]
[1644222770478,53.9941643,116.62,116.53,53.93481288]
[1644222770879,53.9941643,116.62,116.53,53.68481288]
[1644222771080,47.9941643,116.62,116.53,53.68481288]
[1644222771279,47.9941643,116.62,116.53,59.68481288]
[1644222772286,47.9941643,116.62,116.53,59.93481288]
[1644222772483,47.9941643,116.62,116.53,53.68481288]
[1644222773083,47.7441643,116.62,116.53,53.68481288]
[1644222773483,47.7441643,116.62,116.53,59.68481288]
[1644222773885,47.7441643,116.62,116.53,59.93481288]
[1644222774784,47.7441643,116.62,116.53,53.93481288]
[1644222775184,47.7441643,116.62,116.53,53.68481288]
[1644222775585,53.7441643,116.62,116.53,53.68481288]
[1644222775786,53.7441643,116.62,116.53,12.28]
[1644222776186,53.9941643,116.62,116.53,12.28]
[1644222776787,53.9941643,116.62,116.53,12.53]
[1644222777590,53.9941643,116.62,116.53,12.28]
[1644222777790,66.8651643,116.62,116.49,23.4762]
[1644222777989,4.289,116.61,116.49,23.4762]
[1644222778190,4.289,116.61,116.49,29.4762]
[1644222778592,35.13587338,116.6,116.5,38.80821523]
[1644222778991,12.8739,116.59,116.5,45.05821523]
[1644222779192,42.81460229,116.58,116.5,45.05821523]
[1644222780091,24.95646596,116.62,116.5,110.65133713]
[1644222780292,0.20806596,116.62,116.51,24.4275]
[1644222780494,0.20806596,116.62,116.52,12.28]
[1644222780693,0.20806596,116.62,116.52,18.28]
[1644222780892,0.20806596,116.62,116.52,18.53]
[1644222781095,0.20806596,116.62,116.53,69.59847169]
[1644222781292,0.20806596,116.62,116.53,69.84847169]
[1644222782295,0.20806596,116.62,116.54,12.28]
[1644222782495,0.20806596,116.62,116.55,38.88617913]
[1644222782695,0.20806596,116.62,116.55,62.19907913]
[1644222784395,0.20806596,116.62,116.55,0.25]
[1644222784599,0.20806596,116.62,116.5,30.1695219]
[1644222784796,1.39263239,116.62,116.5,36.4474]
[1644222784996,0.20806596,116.62,116.5,30.1674]